bitfinex/quotes_SOLUSD_20230116
["timestamp","ask_amount","ask_price","bid_price","bid_amount"]
[1673887941923,32.58,23.035,23.009,17.0]
[1673887942136,20.0,23.058,23.01,5.01454]
[1673887942137,32.57,23.039,23.01,5.01454]
[1673887942367,32.57,23.039,23.011,24.69497046]
[1673887942575,20.0,23.047,23.013,20.0]
[1673887942791,32.57,23.038,23.014,28.31604062]
[1673887942980,32.56,23.046,23.014,47.23430869]
[1673887943196,20.0,23.047,23.014,47.23430869]
[1673887943197,32.57,23.037,23.014,23.48104696]
[1673887943400,21.44,23.04,23.014,23.48104696]
[1673887943626,32.57,23.036,23.015,20.0]
[1673887943942,32.57,23.039,23.016,29.9281958]
[1673887944157,32.57,23.039,23.016,40.75282173]
[1673887944343,32.56,23.046,23.017,26.87737049]
[1673887944555,32.56,23.046,23.019,20.0]
[1673887944785,32.56,23.046,23.02,9.04142672]
[1673887944997,32.56,23.046,23.02,5.01236]
[1673887945210,32.54,23.057,23.022,6.98759437]
[1673887945423,32.54,23.057,23.024,20.0]
[1673887945636,32.54,23.059,23.025,12.73866716]
[1673887945853,32.54,23.059,23.026,11.91288051]
[1673887946070,32.54,23.061,23.027,5.01084]
[1673887946265,32.54,23.058,23.027,4.98589838]
[1673887946477,20.0,23.057,23.026,18.73959173]
[1673887946682,32.54,23.057,23.027,5.01084]
[1673887946913,32.54,23.059,23.027,5.01084]
[1673887947128,32.55,23.056,23.027,5.01084]
[1673887947327,32.54,23.058,23.029,5.79912319]
[1673887947537,32.55,23.055,23.03,20.0]
[1673887947752,32.54,23.057,23.03,20.0]
[1673887947961,32.55,23.054,23.03,20.0]
[1673887948152,21.45,23.05,23.028,20.0]
[1673887948367,21.45,23.05,23.01,113.991]
[1673887948693,20.0,23.048,23.02,12.26205866]
[1673887948907,32.56,23.049,23.022,6.93531386]
[1673887949121,32.56,23.047,23.023,5.01171]
[1673887949322,32.56,23.048,23.023,5.01171]
[1673887949644,32.56,23.046,23.024,24.65983517]
[1673887949861,32.56,23.046,23.024,18.73959173]
[1673887949862,20.0,23.046,23.024,18.73959173]
[1673887950179,21.38,23.04,23.016,4.0884063]
[1673887950359,21.45,23.04,23.015,43.0237101]
[1673887950575,32.57,23.039,23.008,4.48046447]
[1673887950789,20.0,23.038,23.008,4.48046447]
[1673887950994,32.56,23.043,23.01,7.75391672]
[1673887951219,32.56,23.043,23.011,5.01432]
[1673887951415,32.56,23.045,23.012,6.38621378]
[1673887951629,32.56,23.045,23.014,5.8154916]
[1673887951833,32.56,23.049,23.015,5.01345]
[1673887952053,32.56,23.044,23.016,5.67220654]
[1673887952270,32.56,23.048,23.017,25.01301]
[1673887952485,32.56,23.043,23.019,20.0]
[1673887952796,21.44,23.05,23.019,20.0]
[1673887952797,32.56,23.047,23.02,24.75116707]
[1673887953008,32.56,23.049,23.022,6.46056817]
[1673887953216,32.56,23.049,23.024,5.57152094]
[1673887953427,32.54,23.058,23.027,20.0]
[1673887953839,32.54,23.058,23.029,5.88330102]
[1673887954040,32.54,23.058,23.03,17.0]
[1673887954246,20.0,23.057,23.031,20.0]
[1673887954469,32.54,23.058,23.032,17.0]
[1673887954690,32.55,23.056,23.032,21.76744675]
[1673887954922,32.54,23.057,23.033,23.74912173]
[1673887955115,32.55,23.055,23.034,21.45979688]
[1673887955313,32.55,23.056,23.036,4.92048728]
[1673887955526,32.54,23.06,23.038,20.0]
[1673887955746,32.55,23.055,23.039,6.30792603]
[1673887955962,32.54,23.059,23.04,17.0]
[1673887956152,32.54,23.06,23.04,17.0]
[1673887956363,32.53,23.067,23.041,18.73959173]
[1673887956584,32.53,23.067,23.043,7.65893671]
[1673887957003,20.0,23.066,23.044,35.73959173]
[1673887957212,20.0,23.066,23.045,4.63623883]
[1673887957413,20.0,23.064,23.037,24.63033841]
[1673887957632,20.0,23.064,23.037,18.73959173]
[1673887957836,32.54,23.063,23.033,5.00953]
[1673887958157,20.0,23.062,23.033,5.00953]
[1673887958373,32.54,23.063,23.035,20.0]
[1673887958588,32.53,23.065,23.036,11.29884435]
[1673887958905,32.52,23.073,23.038,6.37926304]
[1673887959110,32.53,23.064,23.039,22.00823]
[1673887959429,20.0,23.071,23.04,31.8431863]
[1673887959640,20.0,23.071,23.041,5.00779]
[1673887959950,32.53,23.07,23.042,17.0]
[1673887960167,20.0,23.076,23.042,17.0]
[1673887960168,32.52,23.072,23.043,12.62438433]
[1673887960367,20.0,23.073,23.045,20.0]
[1673887960687,32.52,23.074,23.046,28.25573826]
[1673887960878,32.52,23.074,23.047,25.00649]
[1673887961087,32.52,23.074,23.048,29.79252162]
[1673887961299,32.52,23.074,23.049,12.966977]
[1673887961508,32.52,23.075,23.051,7.1579168]
[1673887961718,20.0,23.085,23.05,72.1551028]
[1673887961953,20.0,23.085,23.051,17.0]
[1673887962271,20.0,23.083,23.051,97.53776413]
[1673887962462,20.0,23.083,23.053,20.0]
[1673887962679,21.32,23.08,23.051,37.411786]
[1673887962998,20.0,23.079,23.043,37.411786]
[1673887963184,52.51,23.079,23.044,20.0]
[1673887963530,32.51,23.079,23.045,102.67721844]
[1673887963836,32.51,23.079,23.045,20.0]
[1673887964043,21.32,23.07,23.04,20.0]
[1673887964240,21.32,23.07,23.038,32.57]
[1673887964452,52.53,23.069,23.037,20.0]
[1673887964669,17.0,23.068,23.038,32.57]
[1673887964889,17.0,23.068,23.037,20.0]
[1673887965098,20.0,23.066,23.037,20.0]
[1673887965521,32.53,23.065,23.036,147.5102]
[1673887965732,20.0,23.064,23.037,20.0]
[1673887965946,20.0,23.064,23.036,114.9402]
[1673887966141,32.54,23.063,23.036,114.9402]
[1673887966354,20.0,23.066,23.038,20.0]
[1673887966577,20.0,23.066,23.037,32.57]
[1673887966787,21.4,23.06,23.027,20.0]
[1673887967314,32.54,23.059,23.037,18.73959173]
[1673887967728,32.53,23.065,23.037,18.73959173]
[1673887967939,20.0,23.067,23.039,20.0]
[1673887968162,32.53,23.064,23.039,20.0]
[1673887968345,20.0,23.065,23.04,18.73959173]
[1673887968766,32.53,23.064,23.041,17.0]
[1673887968988,32.53,23.068,23.041,49.57]
[1673887969192,32.52,23.074,23.042,37.47918346]
[1673887969396,20.0,23.073,23.043,37.0]
[1673887969824,32.52,23.072,23.044,18.73959173]
[1673887970031,32.52,23.072,23.045,17.0]
[1673887970240,32.52,23.072,23.046,20.0]
[1673887970466,32.52,23.072,23.047,17.0]
[1673887970657,20.0,23.074,23.047,68.29959173]
[1673887970870,20.0,23.074,23.048,20.0]
[1673887971079,52.52,23.074,23.049,17.0]
[1673887971291,52.52,23.074,23.049,51.29959173]
[1673887971508,52.52,23.074,23.05,18.73959173]
[1673887971830,52.52,23.074,23.045,52.56]
[1673887972248,52.52,23.074,23.047,20.0]
[1673887972570,52.52,23.074,23.048,18.73959173]
[1673887972760,52.52,23.074,23.049,17.0]
[1673887973181,52.52,23.074,23.05,38.73959173]
[1673887973508,52.52,23.074,23.051,35.73959173]
[1673887973919,52.52,23.074,23.052,18.73959173]
[1673887974125,52.52,23.074,23.053,17.0]
[1673887974546,52.52,23.074,23.054,18.73959173]
[1673887974889,52.52,23.074,23.055,17.0]
[1673887975383,52.52,23.074,23.055,35.73959173]
[1673887976136,32.52,23.074,23.055,35.73959173]
[1673887976343,108.367,23.075,23.055,35.73959173]
[1673887976555,20.0,23.074,23.055,35.73959173]
[1673887976765,32.51,23.082,23.056,32.55]
[1673887976962,20.0,23.081,23.057,37.0]
[1673887977174,20.0,23.081,23.057,55.73959173]
[1673887977382,20.0,23.081,23.058,18.73959173]
[1673887977596,20.0,23.081,23.06,20.0]
[1673887978132,20.0,23.081,23.061,35.73959173]
[1673887978549,20.0,23.081,23.062,18.73959173]
[1673887978755,20.0,23.081,23.063,17.0]
[1673887978981,32.51,23.082,23.063,17.0]
[1673887979195,32.51,23.084,23.064,18.73959173]
[1673887979389,32.51,23.084,23.065,17.0]
[1673887979597,32.51,23.082,23.065,17.0]
[1673887979816,32.51,23.082,23.066,17.0]
[1673887980035,20.0,23.081,23.065,74.95836692]
[1673887980238,20.0,23.081,23.065,37.47918346]
[1673887980447,32.51,23.08,23.065,18.73959173]
[1673887980658,20.0,23.081,23.056,32.55]
[1673887980870,20.0,23.081,23.057,20.0]
[1673887981094,20.0,23.081,23.057,38.73959173]
[1673887981408,20.0,23.081,23.058,68.27959173]
[1673887981816,20.0,23.081,23.059,18.73959173]
[1673887982020,20.0,23.081,23.061,20.0]
[1673887982550,32.51,23.084,23.062,35.73959173]
[1673887982751,20.0,23.089,23.062,68.27959173]
[1673887982971,32.49,23.092,23.063,37.47918346]
[1673887983295,32.49,23.092,23.065,20.0]
[1673887983697,32.49,23.092,23.067,20.0]
[1673887983906,32.49,23.092,23.068,17.0]
[1673887984128,52.49,23.093,23.069,20.0]
[1673887984355,32.5,23.091,23.07,17.0]
[1673887984549,32.49,23.093,23.071,20.0]
[1673887984748,32.49,23.093,23.072,17.0]
[1673887984961,32.49,23.094,23.072,18.73959173]
[1673887985168,20.0,23.091,23.049,129.4147]
[1673887985595,32.5,23.09,23.066,135.83129173]
[1673887986136,20.0,23.089,23.066,135.83129173]
[1673887986326,20.0,23.089,23.067,17.0]
[1673887986534,20.0,23.087,23.067,17.0]
[1673887986963,32.5,23.086,23.066,18.73959173]
[1673887987163,21.45,23.08,23.066,18.73959173]
[1673887987375,19.5,23.085,23.066,18.73959173]
[1673887988004,32.5,23.086,23.059,32.54]
[1673887988227,143.9676,23.088,23.06,38.73959173]
[1673887988444,32.5,23.09,23.06,61.90883147]
[1673887988633,20.0,23.093,23.062,20.0]
[1673887989076,32.49,23.094,23.063,93.1884232]
[1673887989266,32.49,23.098,23.064,20.0]
[1673887989481,32.49,23.098,23.064,97.6484232]
[1673887989791,32.49,23.098,23.065,51.26959173]
[1673887990003,21.32,23.09,23.067,20.0]
[1673887990318,21.32,23.09,23.068,17.0]
[1673887990529,20.0,23.097,23.069,20.0]
[1673887990862,23.8,23.09,23.07,17.0]
[1673887991259,23.8,23.09,23.071,18.73959173]
[1673887991478,23.8,23.09,23.072,17.0]
[1673887991891,23.8,23.09,23.074,20.0]
[1673887992119,32.49,23.094,23.075,17.0]
[1673887992311,32.49,23.096,23.075,17.0]
[1673887992521,32.49,23.098,23.075,54.47918346]
[1673887992733,32.48,23.101,23.076,80.6484232]
[1673887993059,32.47,23.107,23.078,20.0]
[1673887993273,32.47,23.107,23.079,17.0]
[1673887993490,20.0,23.106,23.08,20.0]
[1673887993809,32.47,23.107,23.081,17.0]
[1673887994029,32.47,23.107,23.082,20.0]
[1673887994343,20.0,23.119,23.082,20.0]
[1673887994344,117.2671,23.113,23.083,17.0]
[1673887994545,117.2671,23.113,23.084,20.0]
[1673887994737,32.46,23.119,23.085,17.0]
[1673887994943,32.46,23.119,23.086,20.0]
[1673887995156,32.46,23.119,23.087,17.0]
[1673887995382,32.46,23.119,23.087,91.40883147]
[1673887995577,32.46,23.119,23.089,20.0]
[1673887995789,32.46,23.119,23.09,17.0]
[1673887995998,20.0,23.118,23.091,20.0]
[1673887996212,20.0,23.118,23.092,17.0]
[1673887996437,32.46,23.117,23.092,49.49]
[1673887997052,32.46,23.117,23.093,20.0]
[1673887997265,32.46,23.117,23.094,17.0]
[1673887997478,20.0,23.113,23.094,17.0]
[1673887998238,32.47,23.112,23.094,17.0]
[1673887998419,32.47,23.112,23.095,20.0]
[1673887998745,32.47,23.113,23.097,20.0]
[1673887998961,32.46,23.118,23.099,20.0]
[1673887999175,32.46,23.119,23.099,20.0]
[1673887999490,32.46,23.117,23.1,17.0]
[1673887999699,32.46,23.118,23.1,17.0]
[1673887999911,52.46,23.119,23.1,17.0]
[1673888000216,20.0,23.118,23.1,17.0]
[1673888000646,32.46,23.117,23.1,17.0]
[1673888000976,0.00648301,23.104,23.1,17.0]
[1673888001174,149.7171,23.125,23.101,52.48]
[1673888001489,117.2671,23.125,23.102,17.0]
[1673888001800,20.0,23.124,23.103,20.0]
[1673888002004,20.0,23.124,23.104,17.0]
[1673888002218,20.0,23.124,23.105,20.0]
[1673888002429,117.2671,23.125,23.106,17.0]
[1673888002636,117.2671,23.125,23.107,20.0]
[1673888002948,32.44,23.129,23.108,17.0]
[1673888003155,32.45,23.125,23.108,17.0]
[1673888003352,20.0,23.125,23.108,17.0]
[1673888004212,20.0,23.128,23.108,17.0]
[1673888004830,20.0,23.126,23.108,17.0]
[1673888005558,38.4991174,23.109,23.108,17.0]
[1673888008191,18.4991174,23.109,23.108,17.0]
[1673888008403,100.1874,23.127,23.109,20.0]
[1673888008626,100.1874,23.127,23.11,17.0]
[1673888008838,20.0,23.134,23.111,20.0]
[1673888009052,20.0,23.134,23.112,17.0]
[1673888009264,32.44,23.129,23.112,35.7115045]
[1673888009487,32.44,23.129,23.113,38.7115045]
[1673888009684,32.44,23.129,23.114,17.0]
[1673888009885,20.0,23.128,23.114,17.0]
[1673888010091,20.0,23.128,23.113,18.7115045]
[1673888010319,20.0,23.126,23.113,18.7115045]
[1673888010514,20.0,23.126,23.102,20.0]
[1673888010841,20.0,23.119,23.105,18.7115045]
[1673888011038,20.0,23.119,23.101,20.0]
[1673888011249,32.46,23.118,23.101,20.0]
[1673888011459,32.46,23.118,23.102,18.7115045]
[1673888011678,20.0,23.118,23.102,18.7115045]
[1673888011893,32.46,23.117,23.101,20.0]
[1673888012303,32.46,23.117,23.102,18.7115045]
[1673888012517,32.45,23.123,23.101,20.0]
[1673888012934,20.0,23.122,23.103,20.0]
[1673888013257,32.45,23.126,23.103,20.0]
[1673888013459,20.0,23.136,23.104,18.7115045]
[1673888013460,23.79,23.12,23.104,18.7115045]
[1673888013671,23.79,23.12,23.105,20.0]
[1673888013892,32.46,23.12,23.105,20.0]
[1673888014212,32.45,23.124,23.105,20.0]
[1673888014425,20.0,23.124,23.106,17.0]
[1673888014614,32.45,23.123,23.106,35.7115045]
[1673888014825,32.45,23.123,23.107,38.7115045]
[1673888015031,32.45,23.123,23.108,17.0]
[1673888015261,32.45,23.125,23.108,35.7115045]
[1673888015453,32.45,23.122,23.109,38.7115045]
[1673888015660,32.45,23.124,23.111,20.0]
[1673888015867,32.45,23.126,23.112,17.0]
[1673888016100,32.45,23.123,23.112,17.0]
[1673888016408,32.45,23.125,23.112,35.7115045]
[1673888016736,20.0,23.119,23.112,18.7115045]
[1673888016933,20.0,23.119,23.1,41.90883147]
[1673888017136,20.0,23.119,23.079,72.17112021]
[1673888017137,23.75,23.11,23.08,20.0]
[1673888017341,23.75,23.11,23.095,18.7115045]
[1673888017680,32.47,23.109,23.095,18.7115045]
[1673888018077,23.85,23.13,23.09,23.9]
[1673888018289,135.9852,23.139,23.1,23.81]
[1673888018502,23.79,23.13,23.101,119.9364]
[1673888018712,23.79,23.13,23.102,20.0]
[1673888018928,23.79,23.13,23.102,88.92432635]
[1673888018929,32.44,23.129,23.102,88.92432635]
[1673888019128,32.44,23.129,23.102,127.08599866]
[1673888019346,32.44,23.129,23.103,209.33469866]
[1673888019549,32.43,23.135,23.103,228.04620316]
[1673888019782,32.43,23.135,23.105,20.0]
[1673888019968,32.43,23.135,23.106,17.0]
[1673888020191,32.43,23.135,23.107,20.0]
[1673888020402,32.43,23.135,23.108,17.0]
[1673888020620,32.43,23.135,23.109,20.0]
[1673888020814,32.43,23.138,23.11,17.0]
[1673888021021,32.43,23.139,23.11,85.91432635]
[1673888021232,32.43,23.139,23.11,87.63167231]
[1673888021447,20.0,23.138,23.111,57.41586284]
[1673888021664,20.0,23.138,23.112,17.0]
[1673888021876,32.43,23.137,23.112,54.41586284]
[1673888022089,20.0,23.136,23.113,20.0]
[1673888022283,20.0,23.136,23.114,17.0]
[1673888022489,32.43,23.135,23.114,35.70793142]
[1673888022725,32.43,23.135,23.115,38.70793142]
[1673888022934,32.43,23.135,23.116,17.0]
[1673888023130,32.43,23.139,23.117,20.0]
[1673888023333,20.0,23.138,23.118,17.0]
[1673888023545,32.43,23.139,23.118,17.0]
[1673888023759,20.0,23.136,23.118,35.70793142]
[1673888023979,20.0,23.136,23.119,37.41586284]
[1673888024184,32.43,23.136,23.12,17.0]
[1673888024403,32.43,23.137,23.12,17.0]
[1673888024613,32.43,23.135,23.121,18.70793142]
[1673888024930,32.43,23.136,23.122,17.0]
[1673888025134,32.43,23.138,23.122,17.0]
[1673888025348,125.4242,23.14,23.122,35.70793142]
[1673888025551,25.5,23.13,23.091,24.99695]
[1673888025763,25.44,23.12,23.104,20.0]
[1673888025982,25.5,23.12,23.107,18.70793142]
[1673888026291,25.5,23.12,23.108,20.0]
[1673888026504,32.44,23.128,23.108,20.0]
[1673888026822,32.44,23.128,23.109,18.70793142]
[1673888027221,32.44,23.129,23.109,18.70793142]
[1673888027434,25.5,23.12,23.109,18.70793142]
[1673888027753,20.0,23.127,23.109,18.70793142]
[1673888028085,32.45,23.126,23.104,58.16167231]
[1673888028275,20.0,23.125,23.107,18.70793142]
[1673888028707,25.42,23.12,23.107,18.70793142]
[1673888030055,32.46,23.119,23.095,113.2653]
[1673888030274,20.0,23.118,23.101,18.70793142]
[1673888030704,32.46,23.117,23.101,18.70793142]
[1673888031326,25.5,23.11,23.095,113.2653]
[1673888031533,25.5,23.11,23.097,18.70793142]
[1673888031735,25.42,23.12,23.098,20.0]
[1673888032158,25.42,23.12,23.099,89.05960373]
[1673888032369,25.42,23.12,23.1,37.0]
[1673888032580,25.42,23.12,23.1,55.70793142]
[1673888032912,25.42,23.12,23.101,51.18793142]
[1673888033121,25.37,23.13,23.102,17.0]
[1673888033435,25.37,23.13,23.102,223.55313008]
[1673888033656,32.44,23.129,23.104,20.0]
[1673888033836,25.37,23.13,23.105,17.0]
[1673888034045,25.37,23.13,23.105,142.79393008]
[1673888034256,25.37,23.13,23.106,18.70793142]
[1673888034468,25.97,23.14,23.11,25.3]
[1673888034686,25.97,23.14,23.111,20.0]
[1673888034917,25.97,23.14,23.112,17.0]
[1673888035131,25.97,23.14,23.113,20.0]
[1673888035334,25.97,23.14,23.114,17.0]
[1673888035552,25.97,23.14,23.115,20.0]
[1673888035753,32.43,23.139,23.116,17.0]
[1673888035959,20.0,23.138,23.117,20.0]
[1673888036173,32.43,23.139,23.118,17.0]
[1673888036377,32.43,23.137,23.119,20.0]
[1673888036588,32.43,23.138,23.12,17.0]
[1673888036799,25.97,23.14,23.12,17.0]
[1673888036800,32.43,23.139,23.12,74.97767777]
[1673888037018,25.97,23.14,23.121,76.86960373]
[1673888037229,0.22,23.14,23.122,17.0]
[1673888037435,0.22,23.14,23.123,20.0]
[1673888037655,25.62,23.14,23.124,17.0]
[1673888037875,25.62,23.14,23.125,20.0]
[1673888038188,25.62,23.14,23.126,17.0]
[1673888038396,25.62,23.14,23.126,35.70793142]
[1673888038595,25.62,23.14,23.127,18.70793142]
[1673888038800,25.62,23.14,23.128,17.0]
[1673888039226,25.62,23.14,23.128,35.70793142]
[1673888039656,25.62,23.14,23.128,17.0]
[1673888039847,0.22,23.14,23.126,17.0]
[1673888040072,25.75,23.16,23.129,96.13935008]
[1673888040275,25.75,23.16,23.131,20.0]
[1673888040276,25.37,23.15,23.131,20.0]
[1673888040799,25.37,23.15,23.133,20.0]
[1673888041015,25.37,23.15,23.134,17.0]
[1673888041221,25.37,23.15,23.135,20.0]
[1673888041427,25.37,23.15,23.136,17.0]
[1673888041649,25.37,23.15,23.137,20.0]
[1673888041860,25.37,23.15,23.138,17.0]
[1673888042493,25.37,23.15,23.137,18.70793142]
[1673888042805,25.37,23.15,23.121,52.45]
[1673888042806,32.41,23.149,23.121,52.45]
[1673888043030,25.4,23.14,23.122,137.17433142]
[1673888043333,25.37,23.14,23.123,39.26974635]
[1673888043543,25.4,23.13,23.128,78.58408533]
[1673888043735,25.4,23.13,23.106,20.0]
[1673888043736,72.43,23.139,23.106,20.0]
[1673888043953,25.4,23.12,23.106,20.0]
[1673888044685,25.4,23.12,23.107,18.70793142]
[1673888045116,25.4,23.12,23.106,20.0]
[1673888045320,25.4,23.12,23.107,18.70793142]
[1673888045540,25.4,23.12,23.108,20.0]
[1673888045949,25.42,23.13,23.109,37.41586284]
[1673888046165,25.42,23.13,23.109,47.31793142]
[1673888046377,25.42,23.13,23.111,20.0]
[1673888046695,25.42,23.13,23.112,17.0]
[1673888046887,25.42,23.13,23.112,65.67793142]
[1673888047098,25.42,23.13,23.113,18.70793142]
[1673888047305,25.42,23.13,23.114,20.0]
[1673888047525,32.43,23.139,23.114,51.31]
[1673888047843,32.43,23.139,23.116,20.0]
[1673888048258,32.43,23.139,23.117,18.70793142]
[1673888048593,25.75,23.14,23.119,20.0]
[1673888048900,25.42,23.14,23.12,35.70793142]
[1673888049113,25.4,23.15,23.12,68.16793142]
[1673888049307,25.4,23.15,23.121,18.70793142]
[1673888049521,32.41,23.149,23.122,37.0]
[1673888049930,32.41,23.149,23.123,18.70793142]
[1673888050157,32.41,23.149,23.124,17.0]
[1673888050377,32.41,23.149,23.125,20.0]
[1673888050572,25.4,23.15,23.126,17.0]
[1673888050897,32.42,23.148,23.126,35.70793142]
[1673888051217,25.37,23.14,23.127,18.70793142]
[1673888051409,25.4,23.15,23.129,20.0]
[1673888051624,25.4,23.15,23.13,17.0]
[1673888051625,32.42,23.148,23.13,17.0]
[1673888051834,32.41,23.149,23.131,20.0]
[1673888052042,32.41,23.149,23.132,17.0]
[1673888052238,32.41,23.149,23.133,20.0]
[1673888052454,32.41,23.149,23.134,17.0]
[1673888052877,32.41,23.149,23.134,35.70793142]
[1673888053085,32.41,23.149,23.135,38.70793142]
[1673888053304,32.41,23.149,23.137,20.0]
[1673888053524,32.41,23.149,23.138,17.0]
[1673888053737,25.4,23.15,23.138,17.0]
[1673888053928,25.4,23.15,23.138,35.70793142]
[1673888054136,32.41,23.149,23.138,35.70793142]
[1673888054363,32.4,23.158,23.139,20.0]
[1673888054571,32.4,23.159,23.14,17.0]
[1673888054787,32.4,23.157,23.14,35.70793142]
[1673888054978,32.4,23.158,23.141,18.70793142]
[1673888055193,32.41,23.156,23.142,17.0]
[1673888055398,32.4,23.157,23.142,17.0]
[1673888055621,20.0,23.158,23.143,18.70793142]
[1673888055839,25.37,23.15,23.144,17.0]
[1673888057189,32.4,23.158,23.144,17.0]
[1673888057400,32.4,23.159,23.145,20.0]
[1673888057610,32.4,23.157,23.146,17.0]
[1673888057825,32.4,23.158,23.146,35.70793142]
[1673888058155,25.31,23.16,23.146,35.70793142]
[1673888058348,25.31,23.16,23.147,20.0]
[1673888058558,32.4,23.159,23.148,17.0]
[1673888058974,32.4,23.159,23.147,20.0]
[1673888059193,25.31,23.16,23.148,18.70793142]
[1673888059407,25.31,23.16,23.149,20.0]
[1673888059837,25.31,23.16,23.15,18.70793142]
[1673888060577,25.31,23.16,23.151,37.0]
[1673888060792,25.31,23.16,23.147,20.0]
[1673888060985,32.4,23.159,23.149,18.70793142]
[1673888061206,32.4,23.159,23.131,45.48]
[1673888061400,32.4,23.159,23.132,20.0]
[1673888061617,246.8601,23.179,23.149,33.68012662]
[1673888061618,116.7723,23.179,23.149,33.68012662]
[1673888061836,116.7723,23.179,23.15,20.0]
[1673888062061,25.32,23.17,23.15,111.29912298]
[1673888062246,25.32,23.17,23.152,20.0]
[1673888062581,25.32,23.17,23.152,38.71789735]
[1673888062792,25.32,23.17,23.154,20.0]
[1673888062997,25.75,23.18,23.155,17.0]
[1673888063201,25.75,23.18,23.156,20.0]
[1673888063415,25.75,23.18,23.157,17.0]
[1673888063609,25.75,23.18,23.158,20.0]
[1673888063825,25.75,23.18,23.159,17.0]
[1673888064036,25.75,23.18,23.159,35.71789735]
[1673888064259,32.36,23.186,23.16,38.71789735]
[1673888064449,32.36,23.189,23.161,17.0]
[1673888064661,32.36,23.185,23.161,83.05908891]
[1673888064869,32.36,23.188,23.162,86.05908891]
[1673888065079,20.0,23.191,23.163,17.0]
[1673888065080,25.42,23.18,23.163,17.0]
[1673888065311,25.42,23.18,23.164,20.0]
[1673888065526,25.42,23.18,23.165,17.0]
[1673888065723,25.42,23.18,23.165,83.05908891]
[1673888065928,25.42,23.18,23.166,47.34119156]
[1673888066127,25.42,23.18,23.166,86.89261235]
[1673888066128,32.37,23.179,23.166,86.89261235]
[1673888066340,52.37,23.179,23.14,118.6165]
[1673888066553,25.32,23.16,23.143,20.0]
[1673888066975,32.4,23.159,23.142,20.0]
[1673888067182,32.4,23.159,23.13,25.23]
[1673888067183,25.4,23.15,23.13,25.23]
[1673888067394,25.4,23.15,23.128,44.59]
[1673888067825,25.4,23.15,23.128,20.0]
[1673888068047,25.4,23.15,23.13,24.27]
[1673888068255,25.4,23.15,23.13,20.0]
[1673888068659,32.41,23.149,23.13,20.0]
[1673888069720,25.42,23.14,23.127,20.0]
[1673888069920,25.42,23.14,23.117,20.0]